fUST/lending_fUST_20250609
["ID","MTS","AMOUNT","RATE_DAILY","PERIOD"]
[365020334,1749405044415,-403.72148981,0.000233,4]
[365020335,1749405044426,-403.72148981,0.000233,4]
[365020336,1749405044435,-403.72148981,0.000233,4]
[365020337,1749405044445,-403.72148981,0.000233,4]
[365020338,1749405044455,-403.72148981,0.000233,4]
[365020339,1749405044465,-403.72148981,0.000233,4]
[365020340,1749405044475,-403.72148981,0.000233,4]
[365020341,1749405044485,-403.72148981,0.000233,4]
[365020342,1749405044494,-403.72148981,0.000233,4]
[365020343,1749405044504,-403.72148981,0.000233,4]
[365020344,1749405044514,-403.72148981,0.000233,4]
[365020345,1749405044525,-403.72148981,0.000233,4]
[365020346,1749405044535,-403.72148981,0.000233,4]
[365020347,1749405044545,-403.72148981,0.000233,4]
[365020348,1749405044555,-403.72148981,0.000233,4]
[365020349,1749405044566,-403.72148981,0.000233,4]
[365020350,1749405044575,-156.73560998,0.000233,4]
[365020351,1749405044585,-156.73560998,0.000233,4]
[365020352,1749405044595,-156.73560998,0.000233,4]
[365020353,1749405044605,-156.73560998,0.000233,4]
[365020354,1749405044615,-156.73560998,0.000233,4]
[365020355,1749405044625,-156.73560998,0.000233,4]
[365020356,1749405044636,-156.73560998,0.000233,4]
[365020357,1749405044646,-156.73560998,0.000233,4]
[365020358,1749405044656,-156.73560998,0.000233,4]
[365020359,1749405044666,-156.73560998,0.000233,4]
[365020360,1749405044676,-156.73560998,0.000233,4]
[365020361,1749405044686,-156.73,0.000233,4]
[365020362,1749405044696,-219.42985397,0.000233,4]
[365020363,1749405044706,-219.42985397,0.000233,4]
[365020364,1749405044716,-219.42985397,0.000233,4]
[365020365,1749405044726,-219.42985397,0.000233,4]
[365020366,1749405044736,-219.42985397,0.000233,4]
[365020367,1749405044745,-219.42985397,0.000233,4]
[365020368,1749405044755,-219.42985397,0.000233,4]
[365020369,1749405044765,-219.42985397,0.000233,4]
[365020370,1749405044774,-219.42985397,0.000233,4]
[365020371,1749405044784,-219.42985397,0.000233,4]
[365020372,1749405044793,-219.42985397,0.000233,4]
[365020373,1749405044803,-219.42985397,0.000233,4]
[365020374,1749405044812,-219.42985397,0.000233,4]
[365020375,1749405044822,-219.42985397,0.000233,4]
[365020376,1749405044832,-219.42985397,0.000233,4]
[365020377,1749405044841,-219.42985397,0.000233,4]
[365020378,1749405044850,-219.42985397,0.000233,4]
[365020379,1749405044860,-282.78899437,0.000233,4]
[365020380,1749405044870,-282.78899437,0.000233,4]
[365020381,1749405044880,-282.78899437,0.000233,4]
[365020382,1749405044889,-282.78899437,0.000233,4]
[365020383,1749405044900,-282.78899437,0.000233,4]
[365020384,1749405044909,-282.78899437,0.000233,4]
[365020385,1749405044919,-282.78899437,0.000233,4]
[365020386,1749405044928,-282.78899437,0.000233,4]
[365020387,1749405044938,-282.78899437,0.000233,4]
[365020388,1749405044947,-282.78899437,0.000233,4]
[365020389,1749405044956,-282.78899437,0.000233,4]
[365020390,1749405044966,-282.78899437,0.000233,4]
[365020391,1749405044975,-282.78899437,0.000233,4]
[365020392,1749405044985,-282.78899437,0.000233,4]
[365020393,1749405044994,-282.78899437,0.000233,4]
[365020394,1749405045004,-282.78899437,0.000233,4]
[365020395,1749405045013,-282.78899437,0.000233,4]
[365020396,1749405045023,-282.78899437,0.000233,4]
[365020397,1749405045032,-282.78899437,0.000233,4]
[365020398,1749405045043,-282.78,0.000233,4]
[365020399,1749405045053,-659.84098686,0.000233,4]
[365020400,1749405045063,-659.84098686,0.000233,4]
[365020401,1749405045073,-659.84098686,0.000233,4]
[365020402,1749405045082,-659.84098686,0.000233,4]
[365020403,1749405045092,-659.84098686,0.000233,4]
[365020404,1749405045101,-659.84098686,0.000233,4]
[365020405,1749405045110,-659.84098686,0.000233,4]
[365020406,1749405045120,-659.84098686,0.000233,4]
[365020407,1749405045130,-659.84098686,0.000233,4]
[365020408,1749405045139,-659.84098686,0.000233,4]
[365020409,1749405045149,-659.84098686,0.000233,4]
[365020410,1749405045159,-659.84098686,0.000233,4]
[365020411,1749405045170,-659.84098686,0.000233,4]
[365020412,1749405045179,-659.84098686,0.000233,4]
[365020413,1749405045189,-659.84098686,0.000233,4]
[365020414,1749405045199,-659.84098686,0.000233,4]
[365020415,1749405045209,-659.84098686,0.000233,4]
[365020416,1749405045219,-3930.17913688,0.00023312,3]
[365020417,1749405045230,-121411.59591787,0.00023312,2]
[365020418,1749405045240,-774.46,0.00023324,2]
[365020419,1749405045250,-6000.0,0.00023348,3]
[365020420,1749405045261,-403.72148981,0.00023364,4]
[365020421,1749405045270,-219.42985397,0.00023364,4]
[365020422,1749405045280,-659.84098686,0.00023364,4]
[365020423,1749405045289,-363.98479102,0.00023373,2]
[365020424,1749405045299,-77.96046312,0.00023373,2]
[365020425,1749405045433,-422.03953688,0.00023373,2]
[365020426,1749405045445,-500.0,0.00023373,2]
[365020427,1749405045454,-500.0,0.00023373,2]
[365020428,1749405045465,-500.0,0.00023373,2]
[365020429,1749405045474,-91458.11727561,0.000234,15]
[365020430,1749405045556,-920.13,0.00019721,2]
[365020431,1749405045566,-16.86585532,0.00019995,2]
[365020432,1749405045578,-903.26414468,0.00019995,2]
[365020433,1749405045588,-920.13,0.00020269,2]
[365020434,1749405045598,-920.13,0.00020543,2]
[365020435,1749405045608,-920.13,0.00020817,2]
[365020436,1749405045618,-920.13,0.00021091,2]
[365020437,1749405045628,-920.13,0.00021365,2]
[365020438,1749405045638,-6212.74880717,0.000234,15]
[365020439,1749405045650,-870.03265731,0.000234,15]
[365020440,1749405045668,-920.13,0.00021639,2]
[365020441,1749405045678,-3449.42728552,0.000234,15]
[365020442,1749405045690,-544.66843119,0.000234,15]
[365020443,1749405045818,-275.77616446,0.00019445,2]
[365020444,1749405045828,-920.13,0.00021913,2]
[365020445,1749405045839,-920.13,0.00022187,4]
[365020446,1749405045849,-920.13,0.00022461,4]
[365020447,1749405045859,-920.13,0.00022735,4]
[365020448,1749405045869,-920.13,0.00023009,4]
[365020449,1749405045879,-920.13,0.00023283,4]
[365020450,1749405045889,-1000.0,0.000233,2]
[365020451,1749405045900,-167778.76010942,0.000234,15]
[365020452,1749405045917,-24219.93139565,0.000234,15]
[365020458,1749405046607,-701.39368558,0.000234,15]
[365020459,1749405046620,-2294.96124186,0.000234,15]
[365020460,1749405046714,-6225.39041383,0.000234,15]
[365020465,1749405331711,150.0,0.0001705,2]
[365020747,1749405458608,7780.0,0.00024561,120]
[365020748,1749405610465,261.887812,0.00013699,2]
[365020811,1749406231720,-1062.392,0.00017819,2]
[365020841,1749406232011,-11017.6556592,0.00017819,2]
[365020843,1749406232021,-196.4126746,0.000179,2]
[365020845,1749406232031,-4381.0921058,0.00018082,2]
[365020848,1749406232041,-493.107598,0.00018243,2]
[365020851,1749406232051,-500.7147866,0.00018331,2]
[365020854,1749406232062,-416.4327626,0.00018418,2]
[365020857,1749406232071,-2225.9632699,0.00018446,2]
[365020860,1749406232087,-300.0,0.00019091,2]
[365020862,1749406232098,-300.0,0.00019091,2]
[365020864,1749406232108,-440.0,0.00019178,2]
[365020866,1749406232118,-430.0,0.00019178,2]
[365020868,1749406232128,-430.0,0.00019178,2]
[365020870,1749406232138,-430.0,0.00019178,2]
[365020872,1749406232147,-1497.1,0.00019178,2]
[365020874,1749406232157,-645.54,0.00019178,2]
[365020876,1749406232167,-440.0,0.00019178,2]
[365020878,1749406232176,-440.0,0.00019178,2]
[365020880,1749406232186,-430.0,0.00019178,2]
[365020883,1749406232196,-430.0,0.00019178,2]
[365020884,1749406232376,-430.0,0.00019178,2]
[365020885,1749406232387,-669.78,0.00019178,2]
[365020886,1749406232397,-440.0,0.00019178,2]
[365020887,1749406232407,-692.68,0.00019178,2]
[365020888,1749406232422,-440.0,0.00019178,2]
[365020889,1749406232432,-157.29330944,0.00019178,2]
[365020890,1749406232442,-440.0,0.00019178,2]
[365020891,1749406232452,-430.0,0.00019178,2]
[365020892,1749406232463,-430.0,0.00019178,2]
[365020893,1749406232473,-430.0,0.00019178,2]
[365020894,1749406232483,-440.0,0.00019178,2]
[365020895,1749406232494,-430.0,0.00019178,2]
[365020896,1749406232504,-50000.0,0.00019178,2]
[365020897,1749406232514,-1901.27601907,0.00019438,2]
[365020898,1749406232524,-2022.26631119,0.00019438,2]
[365020899,1749406232534,-2022.26631119,0.00019438,2]
[365020900,1749406232544,-2022.26631119,0.00019438,2]
[365020901,1749406232554,-2022.26631119,0.00019438,2]
[365020902,1749406232564,-2022.26631119,0.00019438,2]
[365020903,1749406232574,-2022.26631119,0.00019438,2]
[365020904,1749406232584,-2022.26631119,0.00019438,2]
[365020905,1749406232594,-2022.26631119,0.00019438,2]
[365020906,1749406232604,-2022.26631119,0.00019438,2]
[365020907,1749406232614,-2022.26631119,0.00019438,2]
[365020908,1749406232623,-2275.0496001,0.00019438,2]
[365020909,1749406232634,-440.0,0.00019439,2]
[365020910,1749406232644,-827.47,0.00019439,2]
[365020911,1749406232654,-430.0,0.00019439,2]
[365020912,1749406232667,-440.0,0.00019439,2]
[365020913,1749406232677,-1006.2,0.00019439,2]
[365020914,1749406232688,-430.0,0.00019439,2]
[365020915,1749406232698,-440.0,0.00019439,2]
[365020916,1749406232708,-440.0,0.00019439,2]
[365020917,1749406232719,-379.19432624,0.00019439,2]
[365020918,1749406232729,-430.0,0.0001944,2]
[365020919,1749406232740,-430.0,0.0001944,2]
[365020920,1749406232751,-440.0,0.0001944,2]
[365020921,1749406232760,-440.0,0.0001944,2]
[365020922,1749406232770,-430.0,0.0001944,2]
[365020923,1749406232781,-430.0,0.0001944,2]
[365020924,1749406232791,-430.0,0.0001944,2]
[365020925,1749406232801,-430.0,0.0001944,2]
[365020926,1749406232811,-430.0,0.0001944,2]
[365020927,1749406232823,-430.0,0.0001944,2]
[365020928,1749406232833,-376.30547701,0.0001944,2]
[365020929,1749406232844,-430.0,0.0001944,2]
[365020930,1749406232854,-430.0,0.0001944,2]
[365020931,1749406232863,-430.0,0.0001944,2]
[365020932,1749406232873,-430.0,0.0001944,2]
[365020933,1749406232883,-440.0,0.0001944,2]
[365020934,1749406232892,-440.0,0.0001944,2]
[365020935,1749406232902,-430.0,0.0001944,2]
[365020936,1749406232911,-440.0,0.0001944,2]
[365020937,1749406232921,-440.0,0.0001944,2]
[365020938,1749406232931,-430.0,0.0001944,2]
[365020939,1749406232940,-440.0,0.0001944,2]
[365020940,1749406232950,-430.0,0.0001944,2]
[365020941,1749406232960,-430.0,0.0001944,2]
[365020942,1749406232970,-430.0,0.0001944,2]
[365020943,1749406232979,-430.0,0.0001944,2]
[365020944,1749406232989,-430.0,0.0001944,2]
[365020945,1749406232999,-430.0,0.0001944,2]
[365020946,1749406233009,-440.0,0.0001944,2]
[365020947,1749406233019,-430.0,0.0001944,2]
[365020948,1749406233029,-430.0,0.0001944,2]
[365020949,1749406233039,-430.0,0.0001944,2]
[365020950,1749406233049,-430.0,0.0001944,2]
[365020951,1749406233059,-430.0,0.0001944,2]
[365020952,1749406233070,-440.0,0.0001944,2]
[365020953,1749406233079,-430.0,0.0001944,2]
[365020954,1749406233090,-430.0,0.0001944,2]
[365020955,1749406233099,-947.93,0.0001944,2]
[365020956,1749406233110,-430.0,0.0001944,2]
[365020957,1749406233120,-430.0,0.0001944,2]
[365020958,1749406233130,-500.12,0.0001944,2]
[365020959,1749406233140,-440.0,0.0001944,2]
[365020960,1749406233151,-440.0,0.0001944,2]
[365020961,1749406233162,-440.0,0.0001944,2]
[365020962,1749406233171,-400.0,0.00019442,2]
[365020963,1749406233181,-411.35613136,0.00019442,2]
[365020964,1749406233192,-430.0,0.00019442,2]
[365020965,1749406233201,-430.0,0.00019442,2]
[365020966,1749406233212,-430.0,0.00019442,2]
[365020967,1749406233223,-400.0,0.00019442,2]
[365020968,1749406233233,-440.0,0.00019442,2]
[365020969,1749406233244,-430.0,0.00019442,2]
[365020970,1749406233255,-430.0,0.00019442,2]
[365020971,1749406233264,-408.98280923,0.00019442,2]
[365020972,1749406233274,-430.0,0.00019442,2]
[365020973,1749406233284,-430.0,0.00019442,2]
[365020974,1749406233294,-430.0,0.00019442,2]
[365020975,1749406233304,-350.0,0.00019442,2]
[365020976,1749406233314,-430.0,0.00019442,2]
[365020977,1749406233324,-458.34631231,0.00019442,2]
[365020978,1749406233335,-430.0,0.00019442,2]
[365020979,1749406233344,-430.0,0.00019442,2]
[365020980,1749406233354,-430.0,0.00019442,2]
[365020981,1749406233364,-430.00320769,0.00019442,2]
[365020982,1749406233375,-400.0,0.00019442,2]
[365020983,1749406233385,-430.0,0.00019442,2]
[365020984,1749406233395,-430.0,0.00019442,2]
[365020985,1749406233406,-430.0,0.00019442,2]
[365020986,1749406233418,-430.0,0.00019442,2]
[365020987,1749406233430,-431.02619174,0.00019442,2]
[365020988,1749406233440,-479.07,0.00019442,2]
[365020989,1749406233450,-430.0,0.00019442,2]
[365020990,1749406233459,-430.0,0.00019442,2]
[365020991,1749406233469,-571.63206686,0.00019442,2]
[365020992,1749406233479,-430.0,0.00019442,2]
[365020993,1749406233489,-430.0,0.00019442,2]
[365020994,1749406233501,-578.93426575,0.00019442,2]
[365020995,1749406233512,-500.0,0.00019442,2]
[365020996,1749406233522,-430.0,0.00019442,2]
[365020997,1749406233532,-430.0,0.00019442,2]
[365020998,1749406233542,-430.0,0.00019442,2]
[365020999,1749406233552,-430.0,0.00019442,2]
[365021000,1749406233562,-430.0,0.00019442,2]
[365021001,1749406233573,-430.0,0.00019442,2]
[365021002,1749406233583,-470.0,0.00019442,2]
[365021003,1749406233593,-430.0,0.00019442,2]
[365021004,1749406233603,-430.0,0.00019442,2]
[365021005,1749406233614,-430.0,0.00019442,2]
[365021006,1749406233624,-384.20434416,0.00019442,2]
[365021007,1749406233635,-430.0,0.00019442,2]
[365021008,1749406233645,-430.0,0.00019442,2]
[365021009,1749406233655,-470.0,0.00019442,2]
[365021010,1749406233665,-470.0,0.00019442,2]
[365021011,1749406233675,-430.0,0.00019442,2]
[365021012,1749406233685,-430.0,0.00019442,2]
[365021013,1749406233695,-430.0,0.00019442,2]
[365021014,1749406233706,-430.0,0.00019442,2]
[365021015,1749406233716,-430.0,0.00019442,2]
[365021016,1749406233726,-430.0,0.00019442,2]
[365021017,1749406233736,-430.0,0.00019442,2]
[365021018,1749406233746,-430.0,0.00019442,2]
[365021019,1749406233756,-430.0,0.00019442,2]
[365021020,1749406233766,-500.0,0.00019442,2]
[365021021,1749406233775,-430.0,0.00019442,2]
[365021022,1749406233787,-430.0,0.00019442,2]
[365021023,1749406233797,-440.0,0.00019442,2]
[365021024,1749406233806,-386.02641612,0.00019442,2]
[365021025,1749406233815,-430.0,0.00019442,2]
[365021026,1749406233824,-430.0,0.00019442,2]
[365021027,1749406233834,-393.11910756,0.00019442,2]
[365021028,1749406233843,-430.0,0.00019442,2]
[365021029,1749406233852,-430.0,0.00019442,2]
[365021030,1749406233862,-430.0,0.00019442,2]
[365021031,1749406233872,-430.0,0.00019442,2]
[365021032,1749406233881,-430.0,0.00019442,2]
[365021033,1749406233891,-430.0,0.00019442,2]
[365021034,1749406233900,-430.0,0.00019442,2]
[365021035,1749406233910,-440.0,0.00019442,2]
[365021036,1749406233919,-430.0,0.00019442,2]
[365021037,1749406233929,-407.96637653,0.00019442,2]
[365021038,1749406233939,-440.0,0.00019442,2]
[365021039,1749406233948,-430.0,0.00019442,2]
[365021040,1749406233957,-430.0,0.00019442,2]
[365021041,1749406233967,-501.55686779,0.00019442,2]
[365021042,1749406233977,-430.0,0.00019442,2]
[365021043,1749406233986,-419.13497932,0.00019442,2]
[365021044,1749406233998,-462.48927537,0.00019442,2]
[365021045,1749406234007,-440.0,0.00019442,2]
[365021046,1749406234017,-440.0,0.00019442,2]
[365021047,1749406234027,-679.58,0.00019442,2]
[365021048,1749406234037,-370.0,0.00019442,2]
[365021049,1749406234047,-2297.67,0.00019442,2]
[365021050,1749406234057,-440.0,0.00019442,2]
[365021051,1749406234066,-403.59174653,0.00019442,2]
[365021052,1749406234076,-419.70368793,0.00019442,2]
[365021053,1749406234085,-430.0,0.00019442,2]
[365021054,1749406234095,-440.0,0.00019442,2]
[365021055,1749406234104,-440.0,0.00019442,2]
[365021056,1749406234114,-430.0,0.00019442,2]
[365021057,1749406234123,-440.0,0.00019442,2]
[365021058,1749406234133,-160.0,0.00019442,2]
[365021059,1749406234143,-440.0,0.00019442,2]
[365021060,1749406234152,-400.0,0.00019442,2]
[365021061,1749406234161,-430.0,0.00019442,2]
[365021062,1749406234171,-408.01880777,0.00019442,2]
[365021063,1749406234180,-334.96244374,0.00019442,2]
[365021064,1749406234190,-440.0,0.00019442,2]
[365021065,1749406234200,-500.0,0.00019443,2]
[365021066,1749406234209,-233.61538332,0.00019443,2]
[365021067,1749406234219,-423.61788861,0.00019447,2]
[365021068,1749406234228,-246.434,0.00019447,2]
[365021069,1749406234237,-430.0,0.00019447,2]
[365021070,1749406234247,-524.10378087,0.00019447,2]
[365021071,1749406234257,-430.0,0.00019447,2]
[365021072,1749406234266,-510.75374426,0.00019447,2]
[365021073,1749406234275,-430.0,0.00019447,2]
[365021074,1749406234286,-309.580068,0.00019447,2]
[365021075,1749406234295,-430.0,0.00019447,2]
[365021076,1749406234305,-400.0,0.00019447,2]
[365021077,1749406234314,-400.0,0.00019447,2]
[365021078,1749406234324,-400.0,0.00019447,2]
[365021079,1749406234335,-400.0,0.00019447,2]
[365021080,1749406234344,-430.0,0.00019447,2]
[365021081,1749406234354,-400.0,0.00019447,2]
[365021082,1749406234365,-400.0,0.00019447,2]
[365021083,1749406234376,-430.0,0.00019447,2]
[365021084,1749406234386,-400.0,0.00019447,2]
[365021085,1749406234396,-430.0,0.00019447,2]
[365021086,1749406234407,-430.0,0.00019447,2]
[365021087,1749406234418,-430.0,0.00019447,2]
[365021088,1749406234430,-430.0,0.00019447,2]
[365021089,1749406234440,-430.0,0.00019447,2]
[365021090,1749406234450,-430.0,0.00019447,2]
[365021091,1749406234461,-440.0,0.00019452,2]
[365021092,1749406234471,-1497.1,0.00019452,2]
[365021093,1749406234482,-645.54,0.00019452,2]
[365021094,1749406234491,-440.0,0.00019452,2]
[365021095,1749406234503,-669.78,0.00019452,2]
[365021096,1749406234513,-392.1124176,0.00019452,2]
[365021097,1749406234523,-692.68,0.00019452,2]
[365021098,1749406234532,-156.46221123,0.00019452,2]
[365021099,1749406234542,-440.0,0.00019452,2]
[365021100,1749406234553,-440.0,0.00019452,2]
[365021101,1749406234563,-3191.65292562,0.00019584,2]
[365021102,1749406234669,-435.12198118,0.00019178,2]
[365021103,1749406234679,-333.00133382,0.00019584,2]
[365021112,1749406237751,-440.0,0.00019439,2]
[365021113,1749406237771,-55.06999383,0.00019584,2]
[365021114,1749406237787,-470.15971957,0.00019584,2]
[365021115,1749406237798,-430.0,0.00019713,2]
[365021116,1749406237808,-447.63034913,0.00019713,2]
[365021117,1749406237826,-379.83965087,0.00019713,2]
[365021118,1749406237836,-430.0,0.00019713,2]
[365021119,1749406237846,-1006.2,0.00019713,2]
[365021120,1749406237856,-440.0,0.00019713,2]
[365021121,1749406237866,-430.0,0.00019713,2]
[365021122,1749406237876,-440.0,0.00019714,2]
[365021123,1749406237887,-430.0,0.00019714,2]
[365021124,1749406237897,-440.0,0.00019714,2]
[365021125,1749406237907,-440.0,0.00019714,2]
[365021126,1749406237918,-440.0,0.00019714,2]
[365021127,1749406237928,-440.0,0.00019714,2]
[365021128,1749406237938,-440.0,0.00019714,2]
[365021129,1749406237949,-440.0,0.00019714,2]
[365021130,1749406237959,-947.93,0.00019714,2]
[365021131,1749406237970,-440.0,0.00019714,2]
[365021132,1749406237980,-440.0,0.00019714,2]
[365021133,1749406237990,-440.0,0.00019714,2]
[365021134,1749406238000,-182.48663862,0.00019716,2]
[365021135,1749406238012,-479.07,0.00019716,2]
[365021136,1749406238022,-430.0,0.00019716,2]
[365021137,1749406238032,-430.0,0.00019716,2]
[365021138,1749406238042,-440.0,0.00019716,2]
[365021139,1749406238052,-440.0,0.00019716,2]
[365021140,1749406238062,-440.0,0.00019716,2]
[365021141,1749406238071,-679.58,0.00019716,2]
[365021142,1749406238081,-2297.67,0.00019716,2]
[365021143,1749406238090,-440.0,0.00019716,2]
[365021144,1749406238100,-440.0,0.00019716,2]
[365021145,1749406238109,-506.42001689,0.00019716,2]
[365021146,1749406238120,-440.0,0.00019716,2]
[365021147,1749406238130,-440.0,0.00019716,2]
[365021148,1749406238141,-505.11455575,0.00019726,2]
[365021149,1749406238152,-1497.1,0.00019726,2]
[365021150,1749406238162,-645.54,0.00019726,2]
[365021151,1749406238172,-430.0,0.00019726,2]
[365021152,1749406238182,-669.78,0.00019726,2]
[365021153,1749406238192,-692.68,0.00019726,2]
[365021154,1749406238202,-440.0,0.00019726,2]
[365021155,1749406238211,-440.0,0.00019726,2]
[365021156,1749406238223,-789.01,0.00019777,2]
[365021157,1749406238234,-171.84216112,0.00019891,2]
[365021158,1749406238244,-827.47,0.00019987,2]
[365021159,1749406238254,-1006.2,0.00019987,2]
[365021160,1749406238263,-440.0,0.00019987,2]
[365021161,1749406238274,-297.57790936,0.00019988,2]
[365021162,1749406238284,-452.0435329,0.00019988,2]
[365021163,1749406238294,-440.0,0.00019988,2]
[365021164,1749406238304,-440.0,0.00019988,2]
[365021165,1749406238314,-503.20199671,0.00019988,2]
[365021166,1749406238323,-440.0,0.00019988,2]
[365021167,1749406238333,-947.93,0.00019988,2]
[365021168,1749406238343,-440.0,0.00019988,2]
[365021169,1749406238353,-166.09,0.00019988,2]
[365021170,1749406238363,-440.0,0.00019988,2]
[365021171,1749406238374,-479.07,0.0001999,2]
[365021172,1749406238385,-440.0,0.0001999,2]
[365021173,1749406238399,-440.0,0.0001999,2]
[365021174,1749406238410,-679.58,0.0001999,2]
[365021175,1749406238425,-2297.67,0.0001999,2]
[365021176,1749406238435,-440.0,0.0001999,2]
[365021177,1749406238446,-440.0,0.0001999,2]
[365021178,1749406238456,-440.0,0.0001999,2]
[365021179,1749406238629,-440.0,0.0001999,2]
[365021180,1749406238639,-1497.1,0.0002,2]
[365021181,1749406238650,-645.54,0.0002,2]
[365021182,1749406238659,-669.78,0.0002,2]
[365021183,1749406238669,-692.68,0.0002,2]
[365021184,1749406238679,-440.0,0.0002,2]
[365021185,1749406238688,-440.0,0.0002,2]
[365021186,1749406238698,-186.004,0.00020149,2]
[365021187,1749406238708,-261.887812,0.00020187,2]
[365021188,1749406238718,-827.47,0.00020261,2]
[365021189,1749406238728,-1006.2,0.00020261,2]
[365021190,1749406238738,-440.0,0.00020261,2]
[365021191,1749406238747,-391.81486513,0.00020262,2]
[365021192,1749406238758,-440.0,0.00020262,2]
[365021193,1749406238767,-440.0,0.00020262,2]
[365021194,1749406238777,-947.93,0.00020262,2]
[365021195,1749406238787,-440.0,0.00020262,2]
[365021196,1749406238797,-440.0,0.00020262,2]
[365021197,1749406238808,-479.07,0.00020264,2]
[365021198,1749406238817,-440.0,0.00020264,2]
[365021199,1749406238827,-440.0,0.00020264,2]
[365021200,1749406238837,-679.58,0.00020264,2]
[365021201,1749406238846,-2297.67,0.00020264,2]
[365021202,1749406238856,-440.0,0.00020264,2]
[365021203,1749406238865,-440.0,0.00020264,2]
[365021204,1749406238875,-440.0,0.00020264,2]
[365021205,1749406238885,-1497.1,0.00020273,2]
[365021206,1749406238894,-645.54,0.00020273,2]
[365021207,1749406238903,-669.78,0.00020273,2]
[365021208,1749406238913,-692.68,0.00020273,2]
[365021209,1749406238923,-440.0,0.00020273,2]
[365021210,1749406238933,-440.0,0.00020273,2]
[365021211,1749406238943,-423.98131849,0.00020328,2]
[365021212,1749406238952,-834.50537533,0.00020328,2]
[365021213,1749406238962,-229.60437222,0.00020328,2]
[365021214,1749406238974,-160.0,0.00020329,2]
[365021215,1749406238984,-213.05153702,0.00020329,2]
[365021216,1749406238996,-160.0,0.00020329,2]
[365021217,1749406239006,-827.47,0.00020535,2]
[365021218,1749406239015,-1006.2,0.00020535,2]
[365021219,1749406239025,-440.0,0.00020535,2]
[365021220,1749406239035,-440.0,0.00020536,2]
[365021221,1749406239045,-440.0,0.00020536,2]
[365021222,1749406239054,-947.93,0.00020536,2]
[365021223,1749406239064,-440.0,0.00020536,2]
[365021224,1749406239073,-440.0,0.00020536,2]
[365021225,1749406239083,-479.07,0.00020538,2]
[365021226,1749406239094,-440.0,0.00020538,2]
[365021227,1749406239103,-440.0,0.00020538,2]
[365021228,1749406239113,-679.58,0.00020538,2]
[365021229,1749406239123,-2297.67,0.00020538,2]
[365021230,1749406239132,-440.0,0.00020538,2]
[365021231,1749406239142,-440.0,0.00020538,2]
[365021232,1749406239152,-440.0,0.00020538,2]
[365021233,1749406239161,-1497.1,0.00020547,2]
[365021234,1749406239171,-645.54,0.00020547,2]
[365021235,1749406239180,-669.78,0.00020547,2]
[365021236,1749406239190,-692.68,0.00020547,2]
[365021237,1749406239199,-285.89,0.00020547,2]
[365021238,1749406239209,-272.77211015,0.00020547,2]
[365021239,1749406239219,-350.33,0.000206,2]
[365021240,1749406239228,-420.0,0.00020807,2]
[365021241,1749406239238,-420.0,0.00020807,2]
[365021242,1749406239248,-827.47,0.00020809,2]
[365021243,1749406239257,-1006.2,0.00020809,2]
[365021244,1749406239267,-440.0,0.00020809,2]
[365021245,1749406239277,-440.0,0.0002081,2]
[365021247,1749406239287,-440.0,0.0002081,2]